bitfinex/quotes_SOLUSD_20240917
["timestamp","ask_amount","ask_price","bid_price","bid_amount"]
[1726600847484,2.006992,132.93,132.85,35.24966246]
[1726600847792,2.006992,132.93,132.84,15.9744]
[1726600848277,2.006992,132.93,132.84,31.22406246]
[1726600849179,0.12549,132.93,132.85,39.02654646]
[1726600849905,0.12549,132.93,132.86,15.24966246]
[1726600850075,2.00688679,132.93,132.85,23.776884]
[1726600850276,2.00688679,132.93,132.84,15.9744]
[1726600850475,2.00688679,132.93,132.84,31.22406246]
[1726600851098,0.12549,132.93,132.85,15.24966246]
[1726600851399,0.12549,132.93,132.85,16.75487039]
[1726600852003,0.12549,132.93,132.85,15.24966246]
[1726600852700,0.12549,132.93,132.84,31.22406246]
[1726600852901,2.00700282,132.93,132.84,31.22406246]
[1726600854695,0.12549,132.93,132.84,31.22406246]
[1726600855078,0.12549,132.93,132.85,15.24966246]
[1726600857889,2.00699792,132.93,132.85,15.24966246]
[1726600860391,21.8993,132.92,132.84,23.776884]
[1726600860699,2.00726321,132.91,132.83,15.51062796]
[1726600860901,52.00726321,132.91,132.83,0.2609655]
[1726600861109,0.12549,132.89,132.83,0.2609655]
[1726600861284,2.00769446,132.89,132.83,0.2609655]
[1726600861682,6.4563,132.88,132.83,0.2609655]
[1726600861884,0.12549,132.86,132.83,0.2609655]
[1726600862984,30.12549,132.86,132.83,0.2609655]
[1726600868115,1.88223864,132.85,132.83,0.2609655]
[1726600869414,30.0,132.84,132.83,0.2609655]
[1726600870191,30.0,132.84,132.83,4.9583525]
[1726600870893,6.4563,132.88,132.83,4.9583525]
[1726600871093,0.12549,132.87,132.83,4.9583525]
[1726600871817,2.0075553,132.87,132.83,4.9583525]
[1726600873202,30.0,132.84,132.83,4.9583525]
[1726600875207,30.12549,132.84,132.83,4.9583525]
[1726600876493,32.00810966,132.84,132.83,4.9583525]
[1726600876710,30.12549,132.84,132.83,4.9583525]
[1726600881603,32.00796892,132.84,132.83,4.9583525]
[1726600883521,30.12549,132.84,132.83,4.9583525]
[1726600894926,32.00811867,132.84,132.83,4.9583525]
[1726600895133,55.78500267,132.84,132.83,4.9583525]
[1726600895314,55.78500267,132.84,132.79,0.2609655]
[1726600895315,55.65951267,132.84,132.79,0.2609655]
[1726600895519,0.12549,132.82,132.79,0.2609655]
[1726600895720,2.00868871,132.82,132.79,0.2609655]
[1726600896451,30.0,132.81,132.79,0.2609655]
[1726600896620,0.12549,132.8,132.79,0.2609655]
[1726600897452,30.12549,132.8,132.79,0.2609655]
[1726600900338,0.12549,132.8,132.79,0.2609655]
[1726600900649,2.00868374,132.8,132.79,0.2609655]
[1726600901521,0.12549,132.8,132.79,0.2609655]
[1726600901735,2.00868304,132.8,132.79,0.2609655]
[1726600902646,0.12549,132.8,132.79,0.2609655]
[1726600902829,2.00868184,132.8,132.79,0.2609655]
[1726600903851,0.12549,132.8,132.79,0.2609655]
[1726600904150,2.00887606,132.8,132.79,0.2609655]
[1726600904956,0.12549,132.8,132.79,0.2609655]
[1726600905121,2.00897467,132.8,132.79,0.2609655]
[1726600905744,0.12549,132.8,132.79,0.2609655]
[1726600905951,2.00873127,132.8,132.79,0.2609655]
[1726600906744,0.12549,132.8,132.79,0.2609655]
[1726600907325,7.87409342,132.83,132.79,0.2609655]
[1726600907748,59.93119705,132.87,132.79,0.2609655]
[1726600908333,67.80371564,132.87,132.79,0.2609655]
[1726600908541,63.88281859,132.87,132.79,0.2609655]
[1726600908947,0.12549,132.86,132.79,0.2609655]
[1726600909536,2.00814931,132.86,132.79,0.2609655]
[1726600909937,0.12549,132.86,132.79,0.2609655]
[1726600914342,2.00804438,132.86,132.79,0.2609655]
[1726600915866,23.902374,132.86,132.79,0.2609655]
[1726600916064,7.87251859,132.87,132.79,17.0166328]
[1726600916286,7.87251859,132.87,132.79,15.51062796]
[1726600916453,3.92089705,132.88,132.79,15.51062796]
[1726600916771,11.79160893,132.88,132.79,15.51062796]
[1726600916948,7.87071188,132.88,132.79,15.51062796]
[1726600917466,7.87071188,132.88,132.81,15.24966246]
[1726600917777,1.88216743,132.87,132.82,6.3266]
[1726600918947,0.12549,132.86,132.82,6.3266]
[1726600919147,2.00765812,132.86,132.82,6.3266]
[1726600919646,7.87071188,132.88,132.82,6.3266]
[1726600919964,28.27278919,132.89,132.83,15.24966246]
[1726600920167,28.27278919,132.89,132.82,23.08190204]
[1726600920665,28.27278919,132.89,132.83,16.79482502]
[1726600920968,1.88186464,132.88,132.83,30.53896246]
[1726600921271,28.27278919,132.89,132.84,39.02654646]
[1726600921575,1.88165036,132.88,132.84,23.776884]
[1726600921748,28.27278919,132.89,132.84,23.776884]
[1726600922760,0.12549,132.88,132.83,15.2893]
[1726600922964,28.27278919,132.89,132.84,39.02654646]
[1726600923165,3.92089705,132.91,132.84,39.02654646]
[1726600923166,1.88142777,132.91,132.84,39.02654646]
[1726600924085,1.88142777,132.91,132.85,15.24966246]
[1726600924689,12.04908468,132.93,132.87,15.8711]
[1726600924690,0.12549,132.92,132.87,15.8711]
[1726600925062,4.18186255,132.93,132.87,15.8711]
[1726600926481,0.12549,132.92,132.87,15.8711]
[1726600927394,2.00681801,132.92,132.87,15.8711]
[1726600927882,0.12549,132.92,132.87,15.8711]
[1726600928189,0.12549,132.9,132.87,15.8711]
[1726600932285,0.2609655,132.93,132.88,15.24966246]
[1726600932470,0.2609655,132.93,132.88,16.75454438]
[1726600934194,0.2609655,132.93,132.87,15.8711]
[1726600934195,0.12549,132.92,132.87,15.8711]
[1726600935671,0.2609655,132.93,132.88,1.50491732]
[1726600935871,0.2609655,132.93,132.87,31.12076246]
[1726600936067,0.2609655,132.93,132.88,1.50490011]
[1726600936503,0.2609655,132.93,132.87,31.12076246]
[1726600937193,0.2609655,132.93,132.87,15.8711]
[1726600937396,0.12549,132.92,132.87,15.8711]
[1726600937568,2.00674006,132.92,132.87,15.8711]
[1726600939394,0.12549,132.92,132.87,15.8711]
[1726600939601,0.12549,132.9,132.87,15.8711]
[1726600940800,2.00705417,132.9,132.87,15.8711]
[1726600941788,0.12549,132.9,132.87,15.8711]
[1726600941996,0.12549,132.9,132.86,6.4014]
[1726600942377,0.12549,132.9,132.84,15.6528]
[1726600943288,0.12549,132.91,132.84,15.6528]
[1726600943478,2.00742,132.91,132.84,15.6528]
[1726600944177,52.00742,132.91,132.84,15.6528]
[1726600946587,1.30890972,132.9,132.84,15.6528]
[1726600946901,0.12549,132.88,132.84,15.6528]
[1726600947204,2.00748295,132.88,132.82,6.0875]
[1726600947578,2.00748295,132.88,132.81,16.23]
[1726600949007,7.87121648,132.92,132.82,16.75551876]
[1726600949008,19.63390763,132.92,132.82,16.75551876]
[1726600949187,20.0,132.91,132.82,15.24966246]
[1726600949702,1.88181506,132.9,132.82,15.24966246]
[1726600949882,1.88181879,132.89,132.82,15.24966246]
[1726600950807,0.12549,132.88,132.82,23.776884]
[1726600951005,2.00730814,132.88,132.82,23.776884]
[1726600951882,1.88181732,132.9,132.81,16.23]
[1726600952090,0.12549,132.89,132.81,16.23]
[1726600952304,73.92089705,132.91,132.81,16.23]
[1726600952604,0.12549,132.9,132.81,16.23]
[1726600953601,7.86620442,132.89,132.81,16.23]
[1726600953912,0.12549,132.88,132.81,16.23]
[1726600954288,2.00764204,132.88,132.81,16.23]
[1726600955211,0.12549,132.88,132.81,16.23]
[1726600955400,2.00764074,132.88,132.81,16.23]
[1726600955597,0.12549,132.88,132.81,16.23]
[1726600955792,7.86620442,132.89,132.82,23.776884]
[1726600955991,5.23021719,132.92,132.82,23.776884]
[1726600956293,7.86628742,132.9,132.82,23.776884]
[1726600956788,7.86628742,132.9,132.84,39.02654646]
[1726600956990,5.23021719,132.92,132.84,15.24966246]
[1726600956991,3.92089705,132.92,132.84,15.24966246]
[1726600957415,3.92089705,132.92,132.85,39.02654646]
[1726600957705,5.80226982,132.92,132.85,39.02654646]
[1726600958210,5.80226982,132.92,132.85,23.776884]
[1726600958513,5.80226982,132.92,132.84,6.1943]
[1726600959289,0.12549,132.91,132.84,6.1943]
[1726600961711,0.12549,132.91,132.84,7.69962787]
[1726600962013,0.12549,132.91,132.85,1.50532775]
[1726600962416,0.12549,132.91,132.86,1.50520696]
[1726600963015,3.92089705,132.92,132.86,1.50520696]
[1726600964612,3.92089705,132.91,132.86,1.50520696]
[1726600966791,3.92089705,132.91,132.84,21.44396246]
[1726600966993,3.92089705,132.91,132.85,23.776884]
[1726600968315,1.88138125,132.9,132.85,23.776884]
[1726600969113,1.88138097,132.89,132.84,6.1943]
[1726600969299,0.12549,132.9,132.84,6.1943]
[1726600969500,2.00709098,132.9,132.84,6.1943]
[1726600969701,1.88164892,132.89,132.83,43.776884]
[1726600970720,2.00712396,132.9,132.83,23.776884]
[1726600971593,0.12549,132.9,132.83,15.24966246]
[1726600971889,0.12549,132.9,132.84,23.776884]
[1726600972817,2.00711745,132.9,132.84,23.776884]
[1726600973123,1.88162961,132.89,132.84,23.776884]
[1726600973410,0.12549,132.9,132.82,15.24966246]
[1726600973411,3.92089705,132.9,132.82,15.24966246]
[1726600973615,0.12549,132.89,132.82,20.0]
[1726600977614,30.0,132.88,132.82,20.0]
[1726600978913,30.0,132.88,132.83,1.50543437]
[1726600979617,30.0,132.88,132.84,1.50543372]
[1726600980115,30.0,132.88,132.83,39.02654646]
[1726600980335,30.0,132.88,132.83,23.776884]
[1726600982944,30.0,132.88,132.84,15.24966246]
[1726600985438,29.9,132.88,132.83,39.02654646]
[1726600986551,1.88152852,132.87,132.81,16.23]
[1726600986930,1.88152852,132.87,132.8,15.24966246]
[1726600987127,0.12549,132.86,132.8,20.0]
[1726600987327,32.00757635,132.86,132.79,0.2609655]
[1726600987636,6.69609,132.84,132.79,0.2609655]
[1726600987833,0.12549,132.82,132.79,0.2609655]
[1726600988174,2.00832055,132.82,132.79,0.2609655]
[1726600988666,30.0,132.81,132.79,0.2609655]
[1726600988953,1.88274773,132.8,132.79,0.2609655]
[1726600989156,0.12549,132.8,132.79,0.2609655]
[1726600989339,0.12549,132.8,132.77,0.2481889]
[1726600989340,2.00839166,132.8,132.77,0.2481889]
[1726600989542,30.0,132.78,132.77,0.2481889]
[1726600990047,30.12549,132.78,132.77,0.2481889]
[1726600990251,32.00872948,132.78,132.77,0.2481889]
[1726600990632,0.12549,132.76,132.75,0.2609655]
[1726600990959,2.0091263,132.76,132.75,0.2609655]
[1726600991665,30.12549,132.76,132.75,0.2609655]
[1726600992131,32.00905948,132.76,132.75,0.2609655]
[1726600992545,29.7390345,132.75,132.71,0.2609655]
[1726600992935,0.12549,132.74,132.71,0.2609655]
[1726600993132,2.00941291,132.74,132.71,0.2609655]
[1726600994662,30.0,132.72,132.71,0.2609655]
[1726600997531,30.12549,132.72,132.71,0.2609655]
[1726600999461,25.0,132.72,132.71,0.2609655]
[1726601001463,25.0,132.72,132.71,25.54464871]
[1726601001963,25.0,132.72,132.71,45.54464871]
[1726601002259,30.0,132.73,132.72,43.776884]
[1726601002560,29.7390345,132.75,132.72,67.81244222]
[1726601003061,29.7390345,132.75,132.74,39.287484]
[1726601003368,29.7390345,132.75,132.74,59.287484]
[1726601004497,29.7390345,132.75,132.74,83.19755222]
[1726601004789,29.7390345,132.75,132.74,83.32304222]
[1726601005558,22.8214655,132.85,132.74,83.44853222]
[1726601005869,16.6757655,132.85,132.78,23.776884]
[1726601006070,16.6757655,132.85,132.79,1.50585646]
[1726601006389,16.6757655,132.85,132.77,23.776884]
[1726601006862,18.55837391,132.85,132.74,15.5106]
[1726601007454,0.12549,132.84,132.74,15.5106]
[1726601007657,1.88286132,132.84,132.74,15.5106]
[1726601007854,0.12549,132.84,132.74,15.5106]
[1726601008470,0.12549,132.84,132.75,23.776884]
[1726601009554,16.6757655,132.85,132.75,47.68695222]
[1726601011072,0.12549,132.84,132.75,47.68695222]
[1726601011405,0.12549,132.84,132.76,20.0]
[1726601011672,2.00787842,132.84,132.77,23.776884]
[1726601013000,16.6757655,132.85,132.77,23.776884]
[1726601013188,16.6757655,132.85,132.79,23.776884]
[1726601014282,18.55780924,132.85,132.79,23.776884]
[1726601015477,1.88226111,132.84,132.79,23.776884]
[1726601015794,0.12549,132.83,132.75,20.0]
[1726601015981,2.00815847,132.83,132.75,20.0]
[1726601018103,2.00815847,132.83,132.76,23.776884]
[1726601019202,0.12549,132.84,132.76,23.776884]
[1726601019374,2.00792029,132.84,132.76,23.776884]
[1726601020880,2.00792029,132.84,132.77,20.0]
[1726601021085,2.00792029,132.84,132.78,23.776884]
[1726601021897,0.12549,132.84,132.78,23.776884]
[1726601022082,2.00789694,132.84,132.78,23.776884]
[1726601023875,0.12549,132.84,132.78,23.776884]
[1726601024901,2.00791989,132.84,132.78,23.776884]
[1726601025575,0.12549,132.84,132.76,23.776884]
[1726601026696,2.00801706,132.84,132.76,23.776884]
[1726601028784,6.2719,132.83,132.76,23.776884]
[1726601029086,2.00818709,132.82,132.76,23.776884]
[1726601029286,2.00818709,132.82,132.72,20.0]
[1726601029799,0.12549,132.82,132.72,20.0]
[1726601030608,0.12549,132.82,132.74,20.0]
[1726601030786,0.12549,132.82,132.75,23.776884]
[1726601031707,2.00812429,132.82,132.75,23.776884]
[1726601032099,0.12549,132.82,132.75,23.776884]
[1726601032509,2.00812272,132.82,132.75,23.776884]
[1726601033581,0.12549,132.82,132.75,23.776884]
[1726601038489,2.0081223,132.82,132.75,23.776884]
[1726601039814,0.12549,132.82,132.75,23.776884]
[1726601040190,2.00811961,132.82,132.75,23.776884]
[1726601040592,2.00811961,132.82,132.74,43.776884]
[1726601041325,0.12549,132.82,132.74,43.776884]
[1726601045230,2.00813375,132.82,132.74,43.776884]
[1726601045717,15.702,132.81,132.74,20.0]
[1726601045918,30.12549,132.79,132.71,0.2609655]
[1726601046096,0.12549,132.77,132.71,0.2609655]
[1726601046494,21.8435,132.78,132.71,0.2609655]
[1726601046802,21.8435,132.78,132.71,15.55275592]
[1726601047011,30.12549,132.77,132.71,0.2609655]
[1726601047203,1.88342582,132.76,132.71,0.2609655]
[1726601048108,30.0,132.75,132.71,0.2609655]
[1726601052205,30.0,132.75,132.72,23.776884]
[1726601052527,21.8435,132.78,132.74,23.776884]
[1726601053421,21.8435,132.78,132.75,1.50639936]
[1726601054015,21.8435,132.78,132.74,23.776884]
[1726601056445,21.8435,132.78,132.71,0.2609655]
[1726601056937,21.8435,132.78,132.71,20.2609655]
[1726601057312,0.12549,132.76,132.71,0.2609655]
[1726601057633,0.12549,132.77,132.71,0.2609655]
[1726601057925,30.12549,132.77,132.71,0.2609655]
[1726601058125,0.12549,132.75,132.71,0.2609655]
[1726601058422,30.0,132.77,132.71,0.2609655]
[1726601058632,0.12549,132.76,132.71,0.2609655]
[1726601058840,30.0,132.75,132.71,0.2609655]
[1726601061124,1.88363958,132.74,132.71,0.2609655]
[1726601061524,30.0,132.75,132.71,0.2609655]
[1726601063634,0.12549,132.73,132.71,0.2609655]
[1726601063933,32.00937861,132.73,132.71,0.2609655]
[1726601065322,16.1776,132.72,132.71,0.2609655]
[1726601065516,46.30309,132.72,132.71,0.2609655]
[1726601066709,30.12549,132.72,132.71,0.2609655]
[1726601067719,30.0,132.72,132.71,0.2609655]
[1726601072944,30.12549,132.72,132.71,0.2609655]
[1726601073127,0.12549,132.72,132.71,0.2609655]
[1726601076336,30.12549,132.72,132.71,0.2609655]
[1726601077628,30.0,132.72,132.71,0.2609655]
[1726601078836,6.2212,132.78,132.71,0.2609655]
[1726601079249,6.2212,132.78,132.71,15.56191389]
[1726601079449,51.37405486,132.79,132.71,15.56191389]
[1726601079750,51.37405486,132.79,132.73,23.776884]
[1726601080245,43.50494317,132.79,132.73,23.776884]
[1726601080446,28.38674317,132.79,132.73,23.776884]
[1726601082022,0.12549,132.78,132.72,22.2906]
[1726601086025,0.12549,132.79,132.72,16.151]
[1726601086933,0.12549,132.8,132.73,23.776884]
[1726601087337,2.00864368,132.8,132.73,23.776884]
[1726601087650,0.12549,132.8,132.73,23.776884]
[1726601088055,2.00863352,132.8,132.73,23.776884]
[1726601088443,0.12549,132.8,132.72,16.151]
[1726601090242,0.12549,132.8,132.73,1.50672735]
[1726601090447,0.12549,132.8,132.74,1.5065232]
[1726601090962,0.12549,132.8,132.72,31.45194839]
[1726601090963,0.12549,132.8,132.73,23.776884]
[1726601091155,0.12549,132.8,132.74,1.50651105]
[1726601091852,2.00863102,132.8,132.72,16.151]
[1726601092046,2.00882019,132.8,132.71,0.2609655]
[1726601092452,9.53892019,132.8,132.71,0.2609655]
[1726601092655,17.40999317,132.8,132.71,0.2609655]
[1726601093044,7.99656298,132.8,132.71,0.2609655]
[1726601094972,0.12549,132.78,132.71,0.2609655]
[1726601095166,0.12549,132.76,132.71,0.2609655]
[1726601095546,0.12549,132.77,132.71,0.2609655]
[1726601095864,19.32227003,132.8,132.71,0.2609655]
[1726601096061,0.12549,132.79,132.71,24.0378495]
[1726601096660,2.00893006,132.79,132.71,0.2609655]
[1726601096861,9.53953006,132.79,132.71,0.2609655]
[1726601097770,13.46042711,132.79,132.71,0.2609655]
[1726601098350,96.487684,132.78,132.71,0.2609655]
[1726601098668,0.12549,132.77,132.71,0.2609655]
[1726601099254,2.00928118,132.77,132.71,0.2609655]
[1726601099571,30.0,132.74,132.71,0.2609655]
[1726601099877,2.00942768,132.73,132.71,0.2609655]
[1726601100670,30.0,132.72,132.71,0.2609655]
[1726601100860,30.12549,132.72,132.71,0.2609655]
[1726601104771,30.0,132.72,132.71,0.2609655]
[1726601104954,16.0117504,132.76,132.71,0.2609655]
[1726601105950,0.12549,132.75,132.71,0.2609655]
[1726601106510,7.87340435,132.76,132.71,0.2609655]
[1726601106646,1.88369365,132.76,132.71,0.2609655]
[1726601107672,0.12549,132.75,132.71,0.2609655]
[1726601107851,2.00918491,132.75,132.71,0.2609655]
[1726601108052,0.12549,132.75,132.71,0.2609655]
[1726601108358,0.12549,132.77,132.71,0.2609655]
[1726601108882,15.1794,132.78,132.71,0.2609655]
[1726601109162,17.06283733,132.78,132.71,0.2609655]
[1726601109752,3.92089705,132.79,132.71,0.2609655]
[1726601110075,3.92089705,132.79,132.71,21.9825655]
[1726601110584,0.12549,132.78,132.71,21.9825655]
[1726601110778,2.00910049,132.78,132.71,21.9825655]
[1726601110976,0.12549,132.78,132.71,21.9825655]
[1726601111879,7.65709,132.78,132.71,21.9825655]
[1726601112058,0.12549,132.76,132.71,0.2609655]
[1726601112263,2.0091198,132.76,132.71,0.2609655]
[1726601113370,1.88390534,132.76,132.71,0.2609655]
[1726601114090,0.12549,132.75,132.71,0.2609655]
[1726601115663,0.12549,132.77,132.71,0.2609655]
[1726601115882,2.00905238,132.77,132.71,0.2609655]
[1726601116664,11.45159705,132.79,132.71,0.2609655]
[1726601116889,0.12549,132.78,132.71,0.2609655]
[1726601117189,1.88356176,132.77,132.71,0.2609655]
[1726601117366,0.12549,132.78,132.71,0.2609655]
[1726601117894,4.04638705,132.78,132.71,0.2609655]
[1726601118190,1.88370738,132.77,132.71,0.2609655]
[1726601118413,0.12549,132.75,132.71,0.2609655]
[1726601118570,2.00919721,132.75,132.71,0.2609655]
[1726601119385,0.12549,132.75,132.71,0.2609655]
[1726601119583,7.99804305,132.77,132.71,0.2609655]
[1726601120179,9.88161624,132.77,132.71,0.2609655]
[1726601120498,0.12549,132.75,132.71,0.2609655]
[1726601121470,7.87255305,132.77,132.71,0.2609655]
[1726601121671,2.00898147,132.76,132.71,0.2609655]
[1726601124982,3.92089705,132.78,132.71,0.2609655]
[1726601125180,0.12549,132.77,132.71,0.2609655]
[1726601126382,2.00902237,132.77,132.71,0.2609655]
[1726601126804,0.12549,132.77,132.73,16.5461]
[1726601126976,0.12549,132.78,132.73,16.5461]
[1726601127702,5.92981852,132.78,132.73,16.5461]
[1726601127879,5.92981852,132.78,132.72,6.4146]
[1726601128485,4.04638705,132.78,132.72,6.4146]
[1726601130096,1.88356972,132.77,132.72,6.4146]
[1726601130300,2.00906536,132.76,132.72,6.4146]
[1726601131708,2.00906299,132.76,132.72,6.4146]
[1726601131904,2.00906299,132.76,132.71,0.2609655]
[1726601131905,0.12549,132.75,132.71,0.2609655]
[1726601134286,0.12549,132.76,132.71,0.2609655]
[1726601134617,4.04638705,132.76,132.71,0.2609655]
[1726601135718,1.88375754,132.75,132.71,0.2609655]
[1726601135908,30.0,132.73,132.71,0.2609655]
[1726601137490,0.12549,132.76,132.71,0.2609655]
[1726601137695,3.92089705,132.78,132.71,0.2609655]
[1726601137996,0.12549,132.77,132.71,0.2609655]
[1726601141394,4.04638705,132.77,132.71,0.2609655]
[1726601142724,11.45279705,132.77,132.71,0.2609655]
[1726601142901,0.12549,132.76,132.71,0.2609655]
[1726601144698,2.00914263,132.76,132.71,0.2609655]
[1726601144914,0.12549,132.76,132.71,0.2609655]
[1726601146200,3.92089705,132.77,132.71,0.2609655]
[1726601147505,0.12549,132.76,132.71,0.2609655]
[1726601147813,2.00906847,132.76,132.71,0.2609655]
[1726601148013,0.12549,132.76,132.71,0.2609655]
[1726601149001,0.12549,132.76,132.71,1.76773402]
[1726601149229,0.12549,132.76,132.71,0.2609655]
[1726601151422,0.12549,132.77,132.71,0.2609655]
[1726601152104,0.12549,132.77,132.71,1.76770176]
[1726601152328,0.12549,132.77,132.71,0.2609655]
[1726601153816,4.04638705,132.77,132.71,0.2609655]
[1726601154020,0.12549,132.77,132.71,0.2609655]
[1726601154728,3.92089705,132.79,132.73,23.776884]
[1726601155027,3.92089705,132.79,132.74,1.50649386]
[1726601155237,30.0,132.75,132.74,1.50649386]
[1726601155536,30.0,132.75,132.73,23.776884]
[1726601155723,30.0,132.75,132.72,22.6219]
[1726601156537,0.12549,132.78,132.72,22.6219]
[1726601159913,4.04638705,132.78,132.72,22.6219]
[1726601160738,1.88332455,132.77,132.72,22.6219]
[1726601161027,0.12549,132.78,132.72,22.6219]
[1726601161552,0.12549,132.78,132.73,1.50665186]
[1726601161832,0.12549,132.78,132.74,1.50647583]
[1726601162351,0.12549,132.79,132.74,1.50647583]
[1726601162519,0.12549,132.79,132.72,37.92284839]
[1726601163048,0.12549,132.79,132.73,1.5065195]
[1726601163237,0.12549,132.79,132.74,1.50649833]
[1726601163427,0.12549,132.79,132.73,23.776884]
[1726601164551,0.12549,132.79,132.72,37.92284839]
[1726601164552,2.00861489,132.79,132.72,22.6219]
[1726601164723,0.12549,132.79,132.72,22.6219]
[1726601164925,0.12549,132.79,132.73,1.50652065]
[1726601165855,0.12549,132.79,132.74,1.50649297]
[1726601166745,0.12549,132.79,132.72,37.92284839]
[1726601166941,0.12549,132.79,132.73,23.776884]
[1726601167148,34.07871553,132.81,132.73,23.776884]
[1726601167526,5.92949665,132.8,132.72,22.6219]
[1726601167754,1.8831427,132.79,132.72,22.6219]
[1726601169548,0.12549,132.78,132.72,22.6219]
[1726601169756,3.92089705,132.8,132.72,22.6219]
[1726601169958,4.04638705,132.8,132.72,22.6219]
[1726601170331,11.57648705,132.8,132.72,22.6219]
[1726601170636,0.12549,132.78,132.72,22.6219]
[1726601171243,11.45099705,132.8,132.72,22.6219]
[1726601171544,0.12549,132.79,132.72,22.6219]
[1726601172966,0.12549,132.79,132.72,37.92284839]
[1726601173136,41.94811049,132.81,132.73,1.50651136]
[1726601173333,0.12549,132.79,132.72,37.92284839]
[1726601173538,0.12549,132.79,132.73,1.50649486]
[1726601173850,0.12549,132.8,132.74,1.50648402]
[1726601174033,30.15781848,132.81,132.74,16.80743241]
[1726601174566,30.15781848,132.81,132.75,39.07783239]
[1726601174857,23.4380655,132.85,132.76,36.91724839]
[1726601174858,3.92089705,132.83,132.76,36.91724839]
[1726601175234,3.92089705,132.84,132.76,36.91724839]
[1726601175933,0.12549,132.83,132.76,36.91724839]
[1726601177131,19.83146255,132.85,132.76,36.91724839]
[1726601177329,4.04638705,132.84,132.76,36.91724839]
[1726601178763,0.12549,132.84,132.76,36.91724839]
[1726601179355,0.12549,132.84,132.76,21.6163]
[1726601180036,2.00810188,132.84,132.76,21.6163]
[1726601180237,0.12549,132.82,132.76,21.6163]
[1726601180461,2.00831877,132.82,132.76,21.6163]
[1726601182466,0.12549,132.83,132.76,21.6163]
[1726601188781,0.12549,132.84,132.76,21.6163]
[1726601188952,2.0081392,132.84,132.76,21.6163]
[1726601189773,0.12549,132.84,132.76,21.6163]
[1726601190071,2.00811218,132.84,132.76,21.6163]
[1726601190465,9.53591218,132.84,132.76,21.6163]
[1726601190853,7.5284,132.83,132.76,21.6163]
[1726601191062,9.53764916,132.82,132.76,21.6163]
[1726601193159,0.12549,132.8,132.73,15.7039]
[1726601193488,0.12549,132.78,132.73,15.7039]
[1726601193778,2.00907489,132.78,132.73,15.7039]
[1726601194285,0.12549,132.78,132.73,15.7039]
[1726601194654,30.0,132.76,132.73,15.7039]
[1726601195966,1.88351516,132.75,132.73,15.7039]
[1726601198082,0.12549,132.75,132.73,15.7039]
[1726601198388,30.12549,132.75,132.73,15.7039]
[1726601199576,30.0,132.75,132.73,15.7039]
[1726601199762,0.12549,132.79,132.73,15.7039]
[1726601200083,2.00884427,132.79,132.73,15.7039]
[1726601201785,9.53974427,132.79,132.73,15.7039]
[1726601202164,9.53974427,132.79,132.71,0.2609655]
[1726601202165,0.12549,132.77,132.71,0.2609655]
[1726601202478,2.00923036,132.77,132.71,0.2609655]
[1726601202675,30.0,132.73,132.71,0.2609655]
[1726601202883,1.88378743,132.72,132.71,0.2609655]
[1726601203777,30.0,132.73,132.71,0.2609655]
[1726601206994,0.12549,132.77,132.71,0.2609655]
[1726601207178,7.8629804,132.78,132.71,0.2609655]
[1726601207687,7.8629804,132.78,132.71,1.76782772]
[1726601207989,7.8629804,132.78,132.71,0.2609655]
[1726601208164,9.74650065,132.78,132.71,0.2609655]
[1726601208566,0.12549,132.77,132.71,0.2609655]
[1726601209381,0.12549,132.78,132.71,0.2609655]
[1726601210396,0.12549,132.78,132.71,24.0378495]
[1726601210772,0.12549,132.78,132.71,0.2609655]
[1726601211668,0.12549,132.78,132.72,21.33774839]
[1726601211875,61.78014303,132.81,132.72,21.33774839]
[1726601211876,7.85924598,132.81,132.74,15.9922]
[1726601212072,70.32808637,132.83,132.74,31.29314839]
[1726601212886,62.987323,132.83,132.75,45.08653239]
[1726601213369,62.987323,132.83,132.77,15.5199]
[1726601213574,62.987323,132.83,132.77,30.82084839]
[1726601213893,1.8825308,132.82,132.77,15.5199]
[1726601215188,0.12549,132.81,132.77,15.5199]
[1726601215688,62.987323,132.83,132.77,15.5199]
[1726601216081,2.00820499,132.82,132.77,15.5199]
[1726601216482,0.12549,132.82,132.77,15.5199]
[1726601216996,2.00820337,132.82,132.77,15.5199]
[1726601218004,0.12549,132.82,132.77,15.5199]
[1726601218210,2.00820539,132.82,132.77,15.5199]
[1726601218375,0.12549,132.82,132.77,15.5199]